[Event "23rd Alekhine FIDE 2019"]
[Site "Voronezh"]
[Date "2019.06.19"]
[Round "8.6"]
[White "Skvortsov, Andrei"]
[Black "Bukatin, Arseny"]
[Result "1/2-1/2"]
[ECO "A00"]
[WhiteElo "2123"]
[BlackElo "2024"]
[Annotator "NA"]
[PlyCount "146"]
[EventDate "2019.06.12"]
[EventType "swiss"]
[EventCountry "RUS"]
[SourceTitle "playchess.com"]
[Source "ChessBase"]
[SourceQuality "1"]
[TimeControl "40/5400+30:1800+30"]

1. Nc3 {[%emt 0:13:08]} d5 {[%emt 0:00:31]} 2. e4 {[%emt 0:00:12]} d4 {[%emt 0:11:04]} 3. Nce2 {[%emt 0:00:31]} e5 {[%emt 0:05:10]} 4. d3 {[%emt 0:00:09]} Nc6 {[%emt 0:01:29]} 5. f4 {[%emt 0:00:13]} Bd6 {[%emt 0:06:44]} 6. Nf3 {[%emt 0:00:21]} Bg4 {[%emt 0:03:33]} 7. fxe5 {[%emt 0:07:47]} Nxe5 {[%emt 0:02:47]} 8. Nexd4 {[%emt 0:07:48]} c5 {[%emt 0:08:01]} 9. h3 {[%emt 0:02:57]} cxd4 {[%emt 0:05:50]} 10. hxg4 {[%emt 0:00:01]} Nxg4 {[%emt 0:03:54]} 11. e5 {[%emt 0:00:07]} Nxe5 {[%emt 0:02:46]} 12. Qe2 {[%emt 0:00:06]} Nf6 {[%emt 0:01:45]} 13. Bf4 {[%emt 0:02:32]} O-O {[%emt 0:01:55]} 14. Nxe5 {[%emt 0:01:00]} Bxe5 {[%emt 0:00:24]} 15. Bxe5 {[%emt 0:00:04]} Qa5+ {[%emt 0:01:07]} 16. b4 {[%emt 0:03:14]} Qxb4+ {[%emt 0:09:45]} 17. Kf2 {[%emt 0:00:01]} Rfe8 {[%emt 0:00:14]} 18. Kg1 {[%emt 0:00:05]} Re6 {[%emt 0:13:15]} 19. Rh4 {[%emt 0:02:18]} Rae8 {[%emt 0:02:24]} 20. Rxd4 {[%emt 0:07:16]} Qc5 {[%emt 0:02:58]} 21. Qf2 {[%emt 0:00:04]} Rxe5 {[%emt 0:00:47]} 22. Rc4 {[%emt 0:01:05]} Qa5 {[%emt 0:01:20]} 23. a4 {[%emt 0:02:41]} h5 {[%emt 0:04:22]} 24. Rb1 {[%emt 0:02:44]} Ng4 {[%emt 0:01:00]} 25. Qf3 {[%emt 0:03:41]} b6 {[%emt 0:02:17]} 26. d4 {[%emt 0:06:13]} Re3 {[%emt 0:03:28]} 27. Qf4 {[%emt 0:00:06]} R3e4 {[%emt 0:01:15]} 28. Qg3 {[%emt 0:00:26]} Qd2 {[%emt 0:00:59]} 29. Qf3 {[%emt 0:05:06]} Rxd4 {[%emt 0:00:42]} 30. Rc3 {[%emt 0:04:39]} Rf4 {[%emt 0:01:05]} 31. Rd3 {[%emt 0:00:52]} Qxc2 {[%emt 0:01:59]} 32. Qxf4 {[%emt 0:01:12]} Qxb1 {[%emt 0:00:01]} 33. Rf3 {[%emt 0:01:04]} Qg6 {[%emt 0:00:44]} 34. Rd3 {[%emt 0:03:12]} Qf6 {[%emt 0:00:40]} 35. Qd2 {[%emt 0:01:17]} g6 {[%emt 0:00:24]} 36. g3 {[%emt 0:00:36]} Ne5 {[%emt 0:00:16]} 37. Qe2 {[%emt 0:01:05]} Kg7 38. Re3 Re6 {[%emt 0:00:49]} 39. Bh3 {[%emt 0:00:15]} Re7 {[%emt 0:00:55]} 40. Bg2 {[%emt 0:00:12]} Qd6 {[%emt 0:00:24]} 41. Kh1 {[%emt 0:31:13]} f6 {[%emt 0:30:22]} 42. Bh3 {[%emt 0:01:45]} Rc7 {[%emt 0:00:38]} 43. Kh2 {[%emt 0:00:13]} Qc5 {[%emt 0:00:50]} 44. Qe1 {[%emt 0:00:38]} Qc2+ {[%emt 0:00:27]} 45. Kg1 {[%emt 0:01:27]} Qc1 {[%emt 0:00:31]} 46. Bg2 {[%emt 0:00:37]} Qxe1+ {[%emt 0:00:21]} 47. Rxe1 {[%emt 0:00:01]} Rc4 {[%emt 0:00:13]} 48. Ra1 {[%emt 0:00:00]} Kh6 {[%emt 0:00:12]} 49. a5 {[%emt 0:00:01]} Kg5 {[%emt 0:01:19]} 50. axb6 {[%emt 0:00:16]} axb6 {[%emt 0:00:04]} 51. Rb1 {[%emt 0:00:04]} Ng4 {[%emt 0:00:52]} 52. Bb7 {[%emt 0:01:13]} Rc3 {[%emt 0:00:23]} 53. Rb5+ {[%emt 0:00:16]} f5 {[%emt 0:00:18]} 54. Kg2 {[%emt 0:00:03]} Rc2+ {[%emt 0:00:06]} 55. Kg1 {[%emt 0:00:00]} h4 {[%emt 0:00:49]} 56. gxh4+ {[%emt 0:00:05]} Kxh4 {[%emt 0:00:02]} 57. Rxb6 {[%emt 0:00:06]} g5 {[%emt 0:00:24]} 58. Rb3 {[%emt 0:00:01]} f4 {[%emt 0:00:39]} 59. Be4 {[%emt 0:00:34]} Rc1+ {[%emt 0:00:21]} 60. Kg2 {[%emt 0:00:03]} Ne3+ {[%emt 0:00:43]} 61. Kf3 {[%emt 0:00:07]} Rc4 {[%emt 0:01:08]} 62. Rb8 {[%emt 0:01:04]} g4+ {[%emt 0:00:40]} 63. Kxf4 {[%emt 0:00:02]} Ng2+ {[%emt 0:00:28]} 64. Ke5 {[%emt 0:00:39]} Kg3 {[%emt 0:00:19]} 65. Rb3+ {[%emt 0:00:02]} Kh2 {[%emt 0:00:47]} 66. Rb2 {[%emt 0:00:01]} Rxe4+ 67. Kxe4 {[%emt 0:00:03]} Kg3 {[%emt 0:00:52]} 68. Rb3+ {[%emt 0:03:03]} Kf2 {[%emt 0:00:34]} 69. Kf5 {[%emt 0:00:37]} g3 {[%emt 0:00:26]} 70. Kg4 {[%emt 0:00:16]} Ne3+ {[%emt 0:00:11]} 71. Kh3 {[%emt 0:00:06]} g2 {[%emt 0:00:17]} 72. Rb2+ {[%emt 0:00:06]} Kf1 {[%emt 0:00:17]} 73. Rxg2 {[%emt 0:00:15]} Nxg2 1/2-1/2

[Event "23rd Alekhine FIDE 2019"]
[Site "Voronezh"]
[Date "2019.06.19"]
[Round "8.7"]
[White "Popov, Maksim"]
[Black "Al-Hajiri, Bader"]
[Result "1-0"]
[ECO "A38"]
[WhiteElo "2014"]
[BlackElo "2121"]
[Annotator "NA"]
[PlyCount "133"]
[EventDate "2019.06.12"]
[EventType "swiss"]
[EventCountry "RUS"]
[SourceTitle "playchess.com"]
[Source "ChessBase"]
[SourceQuality "1"]
[TimeControl "40/5400+30:1800+30"]

1. Nf3 {[%emt 0:00:00]} Nf6 {[%emt 0:00:11]} 2. c4 {[%emt 0:00:00]} c5 {[%emt 0:00:34]} 3. Nc3 {[%emt 0:00:09]} Nc6 {[%emt 0:00:08]} 4. g3 {[%emt 0:00:27]} g6 {[%emt 0:00:08]} 5. Bg2 {[%emt 0:00:07]} Bg7 {[%emt 0:00:07]} 6. d4 {[%emt 0:00:43]} cxd4 {[%emt 0:00:22]} 7. Nxd4 {[%emt 0:00:09]} Nxd4 {[%emt 0:00:15]} 8. Qxd4 {[%emt 0:00:12]} O-O {[%emt 0:00:06]} 9. O-O {[%emt 0:00:17]} d6 {[%emt 0:00:07]} 10. Qd2 {[%emt 0:04:44]} Rb8 {[%emt 0:10:33]} 11. b3 {[%emt 0:02:54]} Bg4 {[%emt 0:09:59]} 12. Bb2 {[%emt 0:01:39]} Qa5 {[%emt 0:00:32]} 13. h3 {[%emt 0:05:49]} Be6 {[%emt 0:00:15]} 14. Rad1 {[%emt 0:02:44]} Qh5 {[%emt 0:02:11]} 15. g4 {[%emt 0:00:32]} Bxg4 {[%emt 0:16:21]} 16. hxg4 {[%emt 0:00:06]} Nxg4 {[%emt 0:00:02]} 17. Rfe1 {[%emt 0:00:07]} Qh2+ {[%emt 0:00:11]} 18. Kf1 {[%emt 0:00:06]} h5 {[%emt 0:00:02]} 19. Nd5 {[%emt 0:08:18]} Bh6 {[%emt 0:03:29]} 20. Qd3 {[%emt 0:02:03]} Bg5 {[%emt 0:10:01]} 21. Qh3 {[%emt 0:02:00]} e6 {[%emt 0:00:19]} 22. Qxh2 {[%emt 0:01:12]} Nxh2+ {[%emt 0:00:08]} 23. Kg1 {[%emt 0:00:04]} exd5 {[%emt 0:00:17]} 24. Kxh2 {[%emt 0:00:08]} dxc4 {[%emt 0:00:07]} 25. bxc4 {[%emt 0:00:05]} b5 {[%emt 0:01:07]} 26. cxb5 {[%emt 0:00:28]} Rxb5 {[%emt 0:00:10]} 27. Ba3 {[%emt 0:00:21]} Bf4+ {[%emt 0:00:40]} 28. Kg1 {[%emt 0:00:10]} Ra5 {[%emt 0:00:16]} 29. Rd3 {[%emt 0:00:10]} Rc8 {[%emt 0:02:30]} 30. Bd5 {[%emt 0:00:59]} Be5 {[%emt 0:01:40]} 31. Rc1 {[%emt 0:05:14]} Rxc1+ {[%emt 0:00:11]} 32. Bxc1 {[%emt 0:00:06]} Kg7 {[%emt 0:00:04]} 33. Kg2 {[%emt 0:01:20]} Ra4 {[%emt 0:00:47]} 34. f4 {[%emt 0:06:06]} Bxf4 {[%emt 0:04:15]} 35. Bb3 {[%emt 0:00:09]} Rb4 {[%emt 0:00:01]} 36. Bxf4 {[%emt 0:01:15]} Rxf4 {[%emt 0:00:09]} 37. Rxd6 {[%emt 0:00:05]} a5 {[%emt 0:01:35]} 38. Ra6 {[%emt 0:00:19]} Rf5 {[%emt 0:00:53]} 39. Ra7 {[%emt 0:00:37]} g5 {[%emt 0:03:43]} 40. e4 {[%emt 0:00:43]} Rf4 {[%emt 0:03:51]} 41. Rxa5 {[%emt 0:31:43]} f6 {[%emt 0:30:01]} 42. Ra7+ {[%emt 0:01:02]} Kh6 {[%emt 0:00:17]} 43. Ra6 {[%emt 0:07:38]} Rxe4 {[%emt 0:01:51]} 44. Rxf6+ {[%emt 0:00:06]} Kg7 {[%emt 0:00:01]} 45. Rf7+ {[%emt 0:07:09]} Kh6 {[%emt 0:00:38]} 46. Kf3 {[%emt 0:00:44]} Rb4 {[%emt 0:00:35]} 47. Ke3 {[%emt 0:12:50]} h4 {[%emt 0:01:27]} 48. Bd5 {[%emt 0:05:06]} Ra4 {[%emt 0:02:22]} 49. Rc7 {[%emt 0:06:12]} g4 {[%emt 0:07:34]} 50. Rc4 {[%emt 0:01:30]} Ra5 {[%emt 0:00:05]} 51. Rd4 {[%emt 0:01:06]} h3 {[%emt 0:02:54]} 52. a4 {[%emt 0:02:20]} Kg5 {[%emt 0:01:20]} 53. Bc6 {[%emt 0:01:35]} Kh4 {[%emt 0:02:19]} 54. Bf3 {[%emt 0:00:19]} h2 {[%emt 0:04:07]} 55. Rxg4+ {[%emt 0:02:52]} Kh3 {[%emt 0:00:02]} 56. Re4 {[%emt 0:04:03]} Rc5 {[%emt 0:04:08]} 57. Kf2 {[%emt 0:00:50]} Rc2+ {[%emt 0:02:42]} 58. Re2 {[%emt 0:00:09]} Rc1 {[%emt 0:03:38]} 59. Bg2+ {[%emt 0:01:14]} Kg4 {[%emt 0:00:09]} 60. Re4+ {[%emt 0:00:11]} Kg5 {[%emt 0:00:57]} 61. Re1 {[%emt 0:00:18]} Rc4 {[%emt 0:00:24]} 62. Ra1 {[%emt 0:00:14]} Kf4 {[%emt 0:00:23]} 63. a5 {[%emt 0:00:41]} Rc2+ {[%emt 0:00:37]} 64. Kf1 {[%emt 0:00:06]} Ke3 {[%emt 0:01:16]} 65. Ra3+ {[%emt 0:00:17]} Kf4 {[%emt 0:00:09]} 66. Bh1 {[%emt 0:00:23]} Kg4 {[%emt 0:00:47]} 67. Ra1 {[%emt 0:00:05]} 1-0

[Event "23rd Alekhine FIDE 2019"]
[Site "Voronezh"]
[Date "2019.06.19"]
[Round "8.8"]
[White "Zakirov, Vladislav"]
[Black "Mezhov, Dmitriy"]
[Result "1-0"]
[ECO "B40"]
[WhiteElo "2099"]
[BlackElo "1974"]
[Annotator "NA"]
[PlyCount "57"]
[EventDate "2019.06.12"]
[EventType "swiss"]
[EventCountry "RUS"]
[SourceTitle "playchess.com"]
[Source "ChessBase"]
[SourceQuality "1"]
[TimeControl "40/5400+30:1800+30"]

1. e4 {[%emt 0:00:00]} c5 {[%emt 0:00:00]} 2. Nf3 {[%emt 0:00:00]} e6 {[%emt 0:00:00]} 3. b3 {[%emt 0:00:00]} d5 {[%emt 0:00:00]} 4. exd5 {[%emt 0:02:52]} exd5 {[%emt 0:00:03]} 5. Bb5+ {[%emt 0:00:35]} Bd7 {[%emt 0:01:31]} 6. Bxd7+ {[%emt 0:01:13]} Qxd7 {[%emt 0:00:02]} 7. O-O {[%emt 0:00:12]} Nc6 {[%emt 0:01:59]} 8. Re1+ {[%emt 0:00:10]} Be7 {[%emt 0:00:03]} 9. d4 {[%emt 0:14:28]} O-O-O {[%emt 0:03:32]} 10. Bb2 {[%emt 0:05:54]} Bf6 {[%emt 0:07:33]} 11. Ne5 {[%emt 0:07:55]} Qc7 {[%emt 0:00:00]} 12. Nxc6 {[%emt 0:02:12]} bxc6 {[%emt 0:00:43]} 13. Nd2 {[%emt 0:05:10]} Ne7 {[%emt 0:05:46]} 14. Nf3 {[%emt 0:03:21]} Nf5 {[%emt 0:02:38]} 15. Qd3 {[%emt 0:02:22]} Nxd4 {[%emt 0:04:48]} 16. Nxd4 {[%emt 0:00:18]} cxd4 {[%emt 0:00:10]} 17. Bxd4 {[%emt 0:00:09]} Bxd4 {[%emt 0:00:14]} 18. Qxd4 {[%emt 0:00:06]} f6 {[%emt 0:00:35]} 19. Re3 {[%emt 0:06:13]} Rhe8 {[%emt 0:03:44]} 20. Rae1 {[%emt 0:01:24]} Rxe3 {[%emt 0:00:01]} 21. Rxe3 {[%emt 0:00:32]} Rd7 {[%emt 0:02:09]} 22. Qc5 {[%emt 0:04:12]} Kb7 {[%emt 0:10:43]} 23. g3 {[%emt 0:03:06]} Qb6 {[%emt 0:04:36]} 24. Qf8 {[%emt 0:00:47]} c5 {[%emt 0:00:04]} 25. Re8 {[%emt 0:01:03]} Qc7 {[%emt 0:00:20]} 26. a4 {[%emt 0:02:29]} d4 {[%emt 0:02:37]} 27. Qg8 {[%emt 0:03:42]} h6 {[%emt 0:13:57]} 28. Qc4 {[%emt 0:02:52]} Re7 {[%emt 0:00:05]} 29. Qb5+ {[%emt 0:00:14]} 1-0

[Event "23rd Alekhine FIDE 2019"]
[Site "Voronezh"]
[Date "2019.06.19"]
[Round "8.9"]
[White "Kuznetsov, Sergei"]
[Black "Vasiliev, Maxim"]
[Result "1/2-1/2"]
[ECO "A58"]
[WhiteElo "2071"]
[BlackElo "1898"]
[Annotator "NA"]
[PlyCount "128"]
[EventDate "2019.06.12"]
[EventType "swiss"]
[EventCountry "RUS"]
[SourceTitle "playchess.com"]
[Source "ChessBase"]
[SourceQuality "1"]
[TimeControl "40/5400+30:1800+30"]

1. d4 {[%emt 0:00:00]} Nf6 {[%emt 0:00:03]} 2. c4 {[%emt 0:00:00]} c5 {[%emt 0:00:26]} 3. d5 {[%emt 0:00:00]} b5 {[%emt 0:00:23]} 4. cxb5 {[%emt 0:00:00]} a6 {[%emt 0:00:06]} 5. bxa6 {[%emt 0:00:00]} g6 {[%emt 0:00:27]} 6. g3 {[%emt 0:00:09]} Bg7 {[%emt 0:00:11]} 7. Bg2 {[%emt 0:00:09]} d6 {[%emt 0:00:15]} 8. Nh3 {[%emt 0:01:13]} O-O {[%emt 0:00:08]} 9. O-O {[%emt 0:00:09]} Nbd7 {[%emt 0:00:06]} 10. Re1 {[%emt 0:06:00]} Bxa6 {[%emt 0:00:16]} 11. f3 {[%emt 0:07:50]} Qb6 {[%emt 0:00:55]} 12. Nc3 {[%emt 0:01:37]} Rfb8 {[%emt 0:00:50]} 13. Nf2 {[%emt 0:01:15]} Ne8 {[%emt 0:06:01]} 14. Qc2 {[%emt 0:04:23]} Nc7 {[%emt 0:00:16]} 15. f4 {[%emt 0:03:16]} Bc8 {[%emt 0:02:59]} 16. h3 {[%emt 0:03:57]} Nb5 {[%emt 0:01:02]} 17. e3 {[%emt 0:06:26]} Nf6 {[%emt 0:01:48]} 18. g4 {[%emt 0:00:36]} h5 {[%emt 0:01:33]} 19. Bf3 {[%emt 0:00:28]} Bb7 {[%emt 0:00:38]} 20. Nxb5 {[%emt 0:03:35]} Qxb5 {[%emt 0:00:09]} 21. e4 {[%emt 0:00:39]} hxg4 {[%emt 0:01:04]} 22. hxg4 {[%emt 0:00:38]} Nd7 {[%emt 0:00:09]} 23. Nd1 {[%emt 0:01:29]} Bc8 {[%emt 0:02:30]} 24. Kg2 {[%emt 0:02:21]} Ra7 {[%emt 0:05:18]} 25. Bd2 {[%emt 0:06:29]} Bxb2 {[%emt 0:04:51]} 26. Rb1 {[%emt 0:00:58]} Rxa2 {[%emt 0:00:05]} 27. Be2 {[%emt 0:13:11]} Bd4 {[%emt 0:01:29]} 28. Rxb5 {[%emt 0:09:18]} Rxc2 {[%emt 0:00:10]} 29. Rxb8 {[%emt 0:00:30]} Nxb8 {[%emt 0:00:09]} 30. Be3 {[%emt 0:05:26]} Bxg4 {[%emt 0:00:55]} 31. Kf1 {[%emt 0:00:46]} Bxe2+ {[%emt 0:00:47]} 32. Rxe2 {[%emt 0:00:04]} Rxe2 {[%emt 0:00:14]} 33. Kxe2 {[%emt 0:00:03]} Bxe3 {[%emt 0:00:07]} 34. Nxe3 {[%emt 0:00:14]} Nd7 {[%emt 0:00:14]} 35. Nc4 {[%emt 0:00:05]} Kg7 {[%emt 0:00:24]} 36. e5 {[%emt 0:01:57]} dxe5 {[%emt 0:02:39]} 37. fxe5 {[%emt 0:00:02]} g5 {[%emt 0:00:13]} 38. Kf3 Kg6 39. Ke4 {[%emt 0:00:49]} g4 {[%emt 0:01:11]} 40. Kf4 {[%emt 0:00:17]} Kh5 {[%emt 0:00:30]} 41. Ne3 {[%emt 0:30:11]} g3 {[%emt 0:32:28]} 42. Kxg3 {[%emt 0:03:38]} Nxe5 {[%emt 0:00:08]} 43. Kf4 {[%emt 0:00:14]} Nd7 {[%emt 0:03:32]} 44. Nf5 {[%emt 0:00:58]} Nb6 {[%emt 0:04:29]} 45. Nxe7 {[%emt 0:00:03]} c4 {[%emt 0:00:09]} 46. d6 {[%emt 0:05:20]} c3 {[%emt 0:01:14]} 47. Ke3 {[%emt 0:00:17]} Nc4+ {[%emt 0:00:26]} 48. Kd3 {[%emt 0:00:04]} Nxd6 {[%emt 0:00:07]} 49. Kxc3 {[%emt 0:00:20]} Kg5 {[%emt 0:00:15]} 50. Kd3 {[%emt 0:00:51]} Kf4 {[%emt 0:00:23]} 51. Ke2 {[%emt 0:00:57]} Kg4 {[%emt 0:00:34]} 52. Nd5 {[%emt 0:02:49]} Ne4 {[%emt 0:01:02]} 53. Ne3+ {[%emt 0:01:01]} Kf4 {[%emt 0:00:30]} 54. Nd5+ {[%emt 0:00:26]} Ke5 {[%emt 0:00:23]} 55. Ne3 {[%emt 0:00:15]} Nc3+ {[%emt 0:00:24]} 56. Kf3 {[%emt 0:00:54]} Nd5 {[%emt 0:00:15]} 57. Ng4+ {[%emt 0:00:36]} Ke6 {[%emt 0:00:24]} 58. Nh6 {[%emt 0:00:31]} f6 {[%emt 0:00:26]} 59. Ng4 {[%emt 0:00:35]} f5 {[%emt 0:00:10]} 60. Nh6 {[%emt 0:01:59]} f4 {[%emt 0:00:09]} 61. Ke4 {[%emt 0:00:17]} Kf6 {[%emt 0:00:20]} 62. Kxd5 {[%emt 0:00:37]} f3 {[%emt 0:00:17]} 63. Ke4 {[%emt 0:00:20]} Kg5 {[%emt 0:00:11]} 64. Kxf3 {[%emt 0:00:13]} Kxh6 {[%emt 0:00:08]} 1/2-1/2

[Event "23rd Alekhine FIDE 2019"]
[Site "Voronezh"]
[Date "2019.06.19"]
[Round "8.10"]
[White "Selensky, Andrey"]
[Black "Khajrutdinov, Ildar"]
[Result "1-0"]
[ECO "A46"]
[WhiteElo "2006"]
[BlackElo "2063"]
[Annotator "NA"]
[PlyCount "58"]
[EventDate "2019.06.12"]
[EventType "swiss"]
[EventCountry "RUS"]
[SourceTitle "playchess.com"]
[Source "ChessBase"]
[SourceQuality "1"]
[TimeControl "40/5400+30:1800+30"]

1. d4 {[%emt 0:00:00]} Nf6 {[%emt 0:00:00]} 2. Nf3 {[%emt 0:00:00]} e6 {[%emt 0:00:05]} 3. Bg5 {[%emt 0:00:00]} c5 {[%emt 0:02:21]} 4. e3 {[%emt 0:00:49]} Qb6 {[%emt 0:01:48]} 5. Nbd2 {[%emt 0:07:37]} Qxb2 {[%emt 0:21:11]} 6. Bc4 {[%emt 0:05:15]} Nc6 {[%emt 0:11:35]} 7. Rb1 {[%emt 0:11:57]} Qc3 {[%emt 0:02:55]} 8. Rb3 {[%emt 0:00:12]} Qa5 {[%emt 0:00:23]} 9. Bxf6 {[%emt 0:00:08]} gxf6 {[%emt 0:00:19]} 10. d5 {[%emt 0:00:20]} Nb4 {[%emt 0:09:13]} 11. O-O {[%emt 0:01:26]} b5 {[%emt 0:02:02]} 12. dxe6 {[%emt 0:07:26]} bxc4 {[%emt 0:07:53]} 13. Nxc4 {[%emt 0:01:45]} Qa6 {[%emt 0:01:12]} 14. exf7+ {[%emt 0:00:49]} Kxf7 {[%emt 0:07:52]} 15. Nfe5+ {[%emt 0:06:12]} fxe5 {[%emt 0:04:51]} 16. Qh5+ {[%emt 0:10:17]} Ke7 {[%emt 0:04:35]} 17. Qxe5+ {[%emt 0:00:06]} Qe6 {[%emt 0:00:50]} 18. Qxh8 {[%emt 0:02:58]} Qxc4 {[%emt 0:00:26]} 19. Qxh7+ {[%emt 0:00:18]} Kd8 {[%emt 0:03:16]} 20. e4 {[%emt 0:04:09]} Kc7 {[%emt 0:02:39]} 21. Qf5 {[%emt 0:03:18]} Bb7 {[%emt 0:05:07]} 22. Rd1 {[%emt 0:01:14]} Qe6 {[%emt 0:00:34]} 23. a3 {[%emt 0:10:14]} Qxf5 {[%emt 0:03:06]} 24. exf5 {[%emt 0:00:05]} Nxc2 {[%emt 0:02:09]} 25. Rc3 {[%emt 0:00:22]} Bc6 {[%emt 0:01:08]} 26. f4 {[%emt 0:02:50]} Nd4 {[%emt 0:00:55]} 27. Kf2 {[%emt 0:00:07]} Rb8 {[%emt 0:00:49]} 28. Rd2 {[%emt 0:00:15]} Nxf5 {[%emt 0:00:30]} 29. g4 {[%emt 0:00:13]} Nd6 {[%emt 0:00:15]} 1-0

[Event "23rd Alekhine FIDE 2019"]
[Site "Voronezh"]
[Date "2019.06.19"]
[Round "8.11"]
[White "Polukhin, Alexander"]
[Black "Mikhnenko, Alexander"]
[Result "1-0"]
[ECO "B12"]
[WhiteElo "1968"]
[BlackElo "2052"]
[Annotator "NA"]
[PlyCount "77"]
[EventDate "2019.06.12"]
[EventType "swiss"]
[EventCountry "RUS"]
[SourceTitle "playchess.com"]
[Source "ChessBase"]
[SourceQuality "1"]
[TimeControl "40/5400+30:1800+30"]

1. e4 {[%emt 0:00:00]} c6 {[%emt 0:00:44]} 2. d4 {[%emt 0:00:00]} d5 {[%emt 0:00:01]} 3. f3 {[%emt 0:00:00]} Qb6 {[%emt 0:00:04]} 4. Nc3 {[%emt 0:00:00]} dxe4 {[%emt 0:00:05]} 5. fxe4 {[%emt 0:00:00]} e5 {[%emt 0:00:08]} 6. Nf3 {[%emt 0:00:07]} exd4 {[%emt 0:00:51]} 7. Nxd4 {[%emt 0:00:17]} Bc5 {[%emt 0:01:08]} 8. Na4 {[%emt 0:00:13]} Qa5+ {[%emt 0:00:09]} 9. c3 {[%emt 0:00:08]} Bd6 {[%emt 0:09:32]} 10. Nf3 {[%emt 0:06:02]} Qc7 {[%emt 0:09:54]} 11. Qd4 {[%emt 0:03:08]} f6 {[%emt 0:00:25]} 12. Be3 {[%emt 0:05:53]} Nd7 {[%emt 0:05:55]} 13. Rd1 {[%emt 0:07:33]} Ke7 {[%emt 0:04:12]} 14. b4 {[%emt 0:10:27]} b6 {[%emt 0:11:34]} 15. Nb2 {[%emt 0:08:58]} Ne5 {[%emt 0:06:54]} 16. Nc4 {[%emt 0:05:20]} Nxc4 {[%emt 0:02:53]} 17. Bxc4 {[%emt 0:02:41]} Bb7 {[%emt 0:07:27]} 18. e5 {[%emt 0:04:10]} fxe5 {[%emt 0:01:48]} 19. Qg4 {[%emt 0:00:29]} Kf8 {[%emt 0:05:46]} 20. Ng5 {[%emt 0:01:53]} Qe7 {[%emt 0:17:56]} 21. Ne6+ {[%emt 0:01:21]} Ke8 {[%emt 0:00:07]} 22. Nxg7+ {[%emt 0:01:57]} Kd8 {[%emt 0:00:10]} 23. Bg5 {[%emt 0:00:55]} Nf6 {[%emt 0:00:05]} 24. Qf5 {[%emt 0:00:28]} Bc8 {[%emt 0:09:45]} 25. Bxf6 {[%emt 0:00:15]} Bxf5 {[%emt 0:00:06]} 26. Bxe7+ {[%emt 0:00:09]} Kxe7 {[%emt 0:00:42]} 27. Nxf5+ {[%emt 0:00:05]} Kd7 {[%emt 0:00:02]} 28. Nxd6 {[%emt 0:00:19]} Kc7 {[%emt 0:00:02]} 29. O-O {[%emt 0:00:20]} Rhf8 {[%emt 0:00:31]} 30. Rxf8 {[%emt 0:01:56]} Rxf8 {[%emt 0:00:00]} 31. Nf7 {[%emt 0:00:14]} Re8 {[%emt 0:00:36]} 32. Re1 {[%emt 0:00:09]} e4 {[%emt 0:00:15]} 33. Ng5 {[%emt 0:00:14]} e3 {[%emt 0:00:14]} 34. Nxh7 {[%emt 0:00:27]} a5 {[%emt 0:00:34]} 35. bxa5 {[%emt 0:00:18]} bxa5 {[%emt 0:00:03]} 36. Nf6 {[%emt 0:00:18]} Re5 {[%emt 0:00:06]} 37. Ng4 {[%emt 0:00:12]} Re4 {[%emt 0:00:11]} 38. Nxe3 {[%emt 0:00:06]} Kd6 {[%emt 0:00:06]} 39. Nf5+ {[%emt 0:00:28]} 1-0

[Event "23rd Alekhine FIDE 2019"]
[Site "Voronezh"]
[Date "2019.06.19"]
[Round "8.12"]
[White "Zhileykin, Andrey"]
[Black "Yaurov, Egor"]
[Result "1-0"]
[ECO "A13"]
[WhiteElo "2193"]
[BlackElo "1840"]
[Annotator "NA"]
[PlyCount "123"]
[EventDate "2019.06.12"]
[EventType "swiss"]
[EventCountry "RUS"]
[SourceTitle "playchess.com"]
[Source "ChessBase"]
[SourceQuality "1"]
[TimeControl "40/5400+30:1800+30"]

1. c4 {[%emt 0:00:00]} e6 {[%emt 0:00:00]} 2. Nf3 {[%emt 0:02:00]} d5 {[%emt 0:00:00]} 3. d4 {[%emt 0:00:37]} a6 {[%emt 0:00:00]} 4. Nbd2 {[%emt 0:01:51]} Nf6 {[%emt 0:02:09]} 5. g3 {[%emt 0:01:01]} b6 {[%emt 0:00:30]} 6. Bg2 {[%emt 0:01:33]} Bb7 {[%emt 0:01:20]} 7. O-O {[%emt 0:01:07]} Nbd7 {[%emt 0:01:16]} 8. a4 {[%emt 0:01:37]} Bd6 {[%emt 0:00:57]} 9. a5 {[%emt 0:00:32]} O-O {[%emt 0:00:33]} 10. b3 {[%emt 0:03:23]} Ne4 {[%emt 0:07:22]} 11. Nxe4 {[%emt 0:04:11]} dxe4 {[%emt 0:00:11]} 12. Ng5 {[%emt 0:00:26]} Nf6 {[%emt 0:00:51]} 13. Qc2 {[%emt 0:00:20]} Bb4 {[%emt 0:04:07]} 14. Bb2 {[%emt 0:15:01]} bxa5 {[%emt 0:05:48]} 15. Nxe4 {[%emt 0:00:57]} Nxe4 {[%emt 0:01:30]} 16. Bxe4 {[%emt 0:00:08]} Bxe4 {[%emt 0:00:07]} 17. Qxe4 {[%emt 0:00:03]} Re8 {[%emt 0:03:14]} 18. Rfd1 {[%emt 0:00:13]} Qd6 {[%emt 0:03:14]} 19. Qf3 {[%emt 0:02:35]} c6 {[%emt 0:03:54]} 20. e4 {[%emt 0:01:04]} Rad8 {[%emt 0:01:27]} 21. Rd3 {[%emt 0:09:31]} Qc7 {[%emt 0:09:15]} 22. Rad1 {[%emt 0:03:08]} Bf8 {[%emt 0:03:02]} 23. Ra1 {[%emt 0:01:29]} Bb4 {[%emt 0:00:30]} 24. Qg4 {[%emt 0:01:22]} Kh8 {[%emt 0:12:12]} 25. Rad1 {[%emt 0:08:05]} Bf8 {[%emt 0:01:30]} 26. Bc3 {[%emt 0:04:18]} Rb8 {[%emt 0:03:01]} 27. d5 {[%emt 0:04:45]} cxd5 {[%emt 0:01:25]} 28. exd5 {[%emt 0:01:30]} exd5 {[%emt 0:00:34]} 29. cxd5 {[%emt 0:02:29]} f6 {[%emt 0:02:07]} 30. Qa4 {[%emt 0:00:43]} Rb5 {[%emt 0:01:30]} 31. Bd4 {[%emt 0:14:46]} Rd8 {[%emt 0:02:01]} 32. Be3 {[%emt 0:00:13]} Bd6 {[%emt 0:03:17]} 33. Qc4 {[%emt 0:00:23]} Qb7 {[%emt 0:02:11]} 34. Rc1 {[%emt 0:03:44]} Rb4 {[%emt 0:01:25]} 35. Qc2 {[%emt 0:00:12]} Kg8 {[%emt 0:01:08]} 36. Bd2 {[%emt 0:01:35]} Rb5 {[%emt 0:00:53]} 37. Be3 {[%emt 0:03:14]} Rb4 {[%emt 0:04:20]} 38. Qc6 {[%emt 0:00:49]} Rxb3 {[%emt 0:01:18]} 39. Rxb3 {[%emt 0:00:39]} Qxb3 {[%emt 0:00:07]} 40. Bb6 {[%emt 0:00:03]} Rb8 {[%emt 0:01:08]} 41. Ba7 {[%emt 0:34:06]} Rd8 {[%emt 0:30:46]} 42. Bb6 {[%emt 0:01:08]} Rb8 {[%emt 0:00:19]} 43. Bxa5 {[%emt 0:02:08]} Qa3 {[%emt 0:05:31]} 44. Bd2 {[%emt 0:01:24]} Rd8 {[%emt 0:02:45]} 45. Be3 {[%emt 0:00:18]} h6 {[%emt 0:01:29]} 46. Rb1 {[%emt 0:00:30]} Qd3 {[%emt 0:00:52]} 47. Rb7 {[%emt 0:01:42]} Bf8 {[%emt 0:01:51]} 48. Qe6+ {[%emt 0:00:11]} Kh7 {[%emt 0:01:48]} 49. Rf7 {[%emt 0:00:25]} Bb4 {[%emt 0:03:26]} 50. Qg4 {[%emt 0:00:15]} Qg6 {[%emt 0:00:32]} 51. Qe6 {[%emt 0:00:44]} Rd6 {[%emt 0:01:08]} 52. Qe8 {[%emt 0:00:58]} Rxd5 {[%emt 0:00:38]} 53. h4 {[%emt 0:00:22]} Rd1+ {[%emt 0:02:47]} 54. Kh2 {[%emt 0:00:37]} Qg4 {[%emt 0:00:45]} 55. Bxh6 {[%emt 0:00:30]} Rh1+ {[%emt 0:00:57]} 56. Kxh1 {[%emt 0:00:08]} Qf3+ {[%emt 0:00:21]} 57. Kg1 {[%emt 0:00:01]} Qd1+ {[%emt 0:00:18]} 58. Kh2 {[%emt 0:00:05]} Kxh6 {[%emt 0:00:17]} 59. Qh8+ {[%emt 0:00:08]} Kg6 {[%emt 0:00:04]} 60. Qxg7+ {[%emt 0:00:10]} Kf5 {[%emt 0:00:13]} 61. Qxf6+ {[%emt 0:00:34]} Ke4 {[%emt 0:00:11]} 62. Qe6+ {[%emt 0:00:09]} 1-0